Cogmind - Beta 17 @@@ ROGUE MODE // 2026.08.15 @ 21:31:24 Player: Mingebag Result: Destroyed by D-53 Grenadier with Mini Grenade Launcher Performance ------------- Evolutions (0) 0 Regions Visited (2) 400 Robots Destroyed (30) 150 Value Destroyed (561) 561 Prototype IDs (0) 0 Alien Tech Used (0) 0 Bonus (0) 0 TOTAL SCORE: 1111 Bonus ------- None Cogmind --------- Core Integrity 0/250 Matter 300/300 Energy 99/100 System Corruption 0% Temperature Cool (0) Movement Core (1450) Ox28 Location -10/Mines Parts ------- > --- POWER (1) -------- (None) > --- PROPULSION (2) --- (None) > --- UTILITY (2) ------ Huge Storage Unit > --- WEAPON (2) ------- Particle Cannon Grenade Launcher > --- INVENTORY (25) --- Ion Engine Light Ion Engine Light Treads Light Treads Light Treads Aluminum Leg Aluminum Leg Flight Unit Flight Unit Flight Unit Flight Unit Flight Unit Large Matter Pod (150) Sensor Array Terrain Scan Processor Particle Cannon Particle Cannon Grenade Launcher Datajack Datajack Mining Claw Peak State ------------ > --- POWER ------------ Ion Engine > --- PROPULSION ------- Light Treads Light Treads > --- UTILITY ---------- Huge Storage Unit > --- WEAPON ----------- Particle Cannon Particle Cannon > --- INVENTORY -------- Ion Engine Light Ion Engine Light Treads Light Treads Light Treads Aluminum Leg Aluminum Leg Flight Unit Flight Unit Flight Unit Large Matter Pod Sensor Array Terrain Scan Processor Particle Cannon Grenade Launcher Grenade Launcher Datajack Datajack Mining Claw [Rating: 10] Favorites ----------- Power Ion Engine Engine Ion Engine Propulsion Light Treads Treads Light Treads Utility Huge Storage Unit Device Tractor Beam Storage Huge Storage Unit Weapon Medium Laser Energy Gun Medium Laser Energy Cannon Particle Cannon Launcher Grenade Launcher Build | -11 -10 -10 ------- Run | Yrd Mat Min Slots Evolved . | . . . Power . | . . . Propulsion . | . . . Utility . | . . . Weapon . | . . . Parts Attached 18 | 6 10 2 Power 3 | 1 2 . Engine 3 | 1 2 . Core . | . . . Reactor . | . . . Propulsion 5 | 2 3 . Treads 5 | 2 3 . Leg . | . . . Wheel . | . . . Hover . | . . . Flight . | . . . Utility 3 | 1 2 . Device 1 | . 1 . Storage 2 | 1 1 . Processor . | . . . Hackware . | . . . Protection . | . . . Artifact . | . . . Weapon 7 | 2 3 2 Energy Gun 3 | 2 1 . Energy Cannon 3 | . 2 1 Ballistic Gun . | . . . Ballistic Cannon . | . . . Launcher 1 | . . 1 Special Weapon . | . . . Impact Weapon . | . . . Slashing Weapon . | . . . Piercing Weapon . | . . . Special Melee Weapon . | . . . Unidentified Prototypes . | . . . Parts Lost 9 | . 6 3 Power 2 | . 1 1 Propulsion 4 | . 2 2 Utility . | . . . Weapon 3 | . 3 . Highest Loss Streak 4 | . 4 3 To Critical Strikes . | . . . Average Backups 15 | 2 15 19 Power 1 | . 1 2 Propulsion 5 | 1 5 8 Utility 2 | . 2 3 Weapon 3 | . 4 4 Tool/Special . | . . . Unused Backups 18 | . . 18 Power 2 | . . 2 Propulsion 9 | . . 9 Utility 3 | . . 3 Weapon 2 | . . 2 Tool/Special 2 | . . 2 Average Slot Usage (%) 86 | . 86 85 Engine 12 | . 12 14 Treads 26 | . 26 28 Device 4 | . 4 . Storage 14 | . 14 14 Energy Gun 17 | . 19 . Energy Cannon 10 | . 7 26 Peak Build Rating 10 | 6 10 10 Average Rating 8 | 4 7 9 On Entrance 5 | . 6 10 Avg Prop Armor Cover (%) . | . . . Naked Turns . | . . . Heaviest Build 93 | 12 93 93 Greatest Support 40 | 40 40 40 Greatest Overweight (x) 28 | 3 28 28 Average Overweight (x) 1 | . 1 2 Largest Inventory Capacity 25 | 8 25 25 Average Capacity 22 | 7 23 25 Most Carried 21 | 4 20 21 Average Carried 15 | 2 15 19 Final Capacity 25 | 8 25 25 Final Carried 21 | 4 19 21 Class Distribution -------------------- 100% | Mutant Dominant Class ---------------- Mutant | -10/Materials Mutant | -10/Mines Resources | -11 -10 -10 ----------- Run | Yrd Mat Min Matter Collected 612 | 223 349 40 Remotely 207 | . 207 . Salvage Created 973 | . 804 169 Parts 47 | . 39 8 Haulers Intercepted 2 | . 2 . Recyclers Shooed 1 | . . 1 Parts Field Recycled . | . . . Retrieved Matter . | . . . Parts Self-Destructed . | . . . Prevented . | . . . Parts Restored . | . . . Kills | -11 -10 -10 ------- Run | Yrd Mat Min Combat Hostiles Destroyed 23 | . 20 3 Guns 14 | . 14 . Cannons 7 | . 6 1 AOE 2 | . . 2 Classes Destroyed 6 | . 6 . Hauler 2 | . 2 . Recycler 3 | . 1 2 Operator 1 | . 1 . Watcher 1 | . 1 . Swarmer 12 | . 9 3 Grunt 11 | . 11 . Best Kill Streak 3 | . 3 3 Combat Bots Only 3 | . 3 3 Max Kills in Single Turn 2 | . 1 2 Gunslinging . | . . . Exploded 1 | . . 1 Melee . | . . . Uniques/NPCs Destroyed . | . . . Combat | -11 -10 -10 -------- Run | Yrd Mat Min Hostile Shots Fired 183 | . 167 16 Missed 41 | . 34 7 Hits 142 | . 133 9 Projectile 142 | . 133 9 AOE 7 | . . 7 Critical Strikes 1 | . 1 . Damage Taken 1460 | . 1195 265 Core 251 | . 204 47 Absorbed by Shields . | . . . Core Remaining (%) 100 | 100 . . Volleys Fired 79 | . 74 5 Largest 2 | . 2 2 Hottest 136 | . 136 136 Shots Fired 151 | . 141 10 Gun 116 | . 116 . Cannon 33 | . 25 8 Launcher 2 | . . 2 Special . | . . . Kinetic . | . . . Thermal 149 | . 141 8 Explosive 2 | . . 2 Electromagnetic . | . . . Robot Hit Streak 10 | . 10 4 Robot Miss Streak 6 | . 6 1 Penetration Max . | . . . Secondary Targets 4 | . 4 . Max Gunslinging Chain 1 | . 1 . Shots Hit Robots 92 | . 88 4 Core Hits 42 | . 37 5 Critical Kills . | . . . Critical Parts Destroyed . | . . . Critical Strikes 7 | . 7 . Burn 7 | . 7 . Melee Attacks . | . . . Impact . | . . . Slashing . | . . . Piercing . | . . . Sneak Attacks . | . . . Combat Hostiles . | . . . Follow-up Attacks . | . . . Damage Inflicted 1547 | . 1279 268 Guns 919 | . 919 . Cannons 412 | . 329 83 Explosions 167 | . . 167 Melee . | . . . Ramming 49 | . 31 18 Kinetic . | . . . Thermal 1331 | . 1248 83 Explosive 167 | . . 167 Electromagnetic . | . . . Impact . | . . . Slashing . | . . . Piercing . | . . . Highest Corruption . | . . . Average Corruption . | . . . Corruption Purged . | . . . Corruption Blocked . | . . . Overload Shots . | . . . Overflow Damage 3 | . 1 2 Projectiles 3 | . 1 2 Explosions . | . . . Melee . | . . . Knockbacks . | . . . Impact . | . . . Kinetic . | . . . Secondary . | . . . Self-Inflicted Damage . | . . . Shots . | . . . Rammed 6 | . 5 1 Targets Rammed 6 | . 5 1 Kicked . | . . . Crushed . | . . . Highest Temperature 378 | . 378 150 Average Temperature 117 | . 121 59 Received Heat Transfer 249 | . 249 . Effects 3 | . 3 . Shutdowns 1 | . 1 . Energy Bleed 1 | . 1 . Matter Decay 1 | . 1 . Siege Activations . | . . . Martial Activations . | . . . Shielding Activations . | . . . Robots Disrupted . | . . . Combat Hostiles . | . . . Robots Corrupted . | . . . Combat Hostiles . | . . . Parts Fried . | . . . Impact Corruptions . | . . . Robots Melted . | . . . Combat Hostiles . | . . . Parts Melted 8 | . 8 . Heat Transferred 3959 | . 3811 148 Parts Sabotaged . | . . . Parts Stolen . | . . . Parts Stripped . | . . . Power Chain Reactions . | . . . Alert | -11 -10 -10 ------- Run | Yrd Mat Min Maximum Alert Level . | . . . Low Security (%) 100 | 100 100 100 Level 1 . | . . . Level 2 . | . . . Level 3 . | . . . Level 4 . | . . . Level 5 . | . . . High Security . | . . . Max Security . | . . . Peak Influence 112 | . 112 81 Initial 31 | . . 31 Average 34 | . 36 26 Influence Increases 638 | . 547 91 Destroy 0b10 Robot/C 460 | . 400 60 Destroy 0b10 Robot/NC 35 | . 25 10 Destroy Leader 96 | . 86 10 Successful Hack 6 | . 6 . Destroy Structure 11 | . . 11 Lose Combat Pursuer 30 | . 30 . Influence Decreases 638 | . 467 171 Entered New Map 49 | . . 49 Time Decay 518 | . 412 106 Lost Part 71 | . 55 16 Squads Dispatched 5 | . 5 . Investigation 4 | . 4 . Extermination . | . . . Reinforcement 1 | . 1 . Assault . | . . . Garrison . | . . . Intercept . | . . . Searches Triggered . | . . . Construction Impeded . | . . . Haulers Reinforced . | . . . Active Scanning Responses . | . . . Cargo Convoy Interrupts . | . . . Stealth | -11 -10 -10 --------- Run | Yrd Mat Min Distress Signals . | . . . Communications Jammed . | . . . Distress Signals . | . . . Times Spotted 45 | . 39 6 Peak Tracking Total 4 | . 4 3 Tactical Retreats 2 | . 2 . Traps | -11 -10 -10 ------- Run | Yrd Mat Min Traps Triggered 4 | . 4 . Indirectly . | . . . Trap Hack Attempts . | . . . Triggered . | . . . Disarmed . | . . . Reprogrammed . | . . . Reused . | . . . Traps Extracted . | . . . Installed . | . . . Triggered . | . . . Machines | -11 -10 -10 ---------- Run | Yrd Mat Min Machines Disabled . | . . . Max in Single Turn . | . . . Machines Repaired . | . . . Machines Dismantled . | . . . Machines Sabotaged . | . . . Overloaded Fab Kills . | . . . Hacking | -11 -10 -10 --------- Run | Yrd Mat Min Machines Accessed 3 | . 3 . Terminals 3 | . 3 . Fabricators . | . . . Repair Stations . | . . . Recycling Units . | . . . Scanalyzers . | . . . Garrison Access . | . . . Total Hacks 8 | . 8 . Successful 1 | . 1 . Failed 7 | . 7 . Catastrophic 1 | . 1 . Database Lockouts . | . . . Manual 4 | . 4 . Terminals 8 | . 8 . Fabricators . | . . . Repair Stations . | . . . Recycling Units . | . . . Scanalyzers . | . . . Garrison Access . | . . . Terminal Hacks . | . . . Fabricator Hacks . | . . . Repair Station Hacks . | . . . Recycling Unit Hacks . | . . . Scanalyzer . | . . . Garrison Access Hacks . | . . . Unauthorized Hacks 1 | . 1 . Terminals 1 | . 1 . Operators 1 | . 1 . Fabricators . | . . . Repair Stations . | . . . Recycling Units . | . . . Scanalyzers . | . . . Garrison Access . | . . . Data Cores Recovered . | . . . Used . | . . . Hacking Detections 3 | . 3 . Full Trace Events 2 | . 2 . Feedback Events . | . . . Feedback Blocked . | . . . Robot Schematics Acquired . | . . . Robots Built . | . . . Authchips . | . . . Time . | . . . Total Robot Build Rating . | . . . Part Schematics Acquired . | . . . Parts Built . | . . . Authchips . | . . . Time . | . . . Total Part Build Rating . | . . . Part Studies Acquired . | . . . Parts Repaired . | . . . Time . | . . . Parts Recycled . | . . . Recycled Matter . | . . . Retrieved Matter . | . . . Retrieved Components . | . . . Parts Scanalyzed . | . . . Part Schematics Acquired . | . . . Parts Damaged . | . . . Bothacking | -11 -10 -10 ------------ Run | Yrd Mat Min Used RIF Installer . | . . . Robots Hacked . | . . . Non-combat . | . . . Combat . | . . . Robot Hacks Applied . | . . . Relay Couplers Released . | . . . Fabnet Peak Effective % . | . . . Robots Rewired . | . . . Allies Hacked . | . . . Hacks Repelled . | . . . Allies | -11 -10 -10 -------- Run | Yrd Mat Min Total Allies . | . . . Largest Group . | . . . Highest-Rated Group . | . . . Highest-Rated Ally . | . . . Total Orders . | . . . Ally Attacks . | . . . Total Damage . | . . . Kills . | . . . Allies Corrupted . | . . . Allies Melted . | . . . Intel | -11 -10 -10 ------- Run | Yrd Mat Min Active Infowar (turns) . | . . . Robot Analysis Total . | . . . Derelict Logs Recovered . | . . . Drone Launches . | . . . Drone Recoveries . | . . . Exploration | -11 -10 -10 ------------- Run | Yrd Mat Min Turns Passed 2834 | 93 2400 341 Spaces Moved 838 | 53 692 93 Core 17 | 10 6 1 Treads 821 | 43 686 92 Legs . | . . . Wheels . | . . . Hover . | . . . Flight . | . . . Fastest Speed 50 | 50 160 320 Average Speed 294 | 153 299 332 Slowest Speed 1450 | 200 1450 1450 Overloaded Moves . | . . . Propulsion Burnouts . | . . . Robots Hopped . | . . . Potential Cave-ins . | . . . Cave-ins Triggered . | . . . Exploration Rate (%) 37 | 3 88 22 Regions Visited 2 Branch Regions 1 Pre-discovered Areas . | . . . Known Exits Taken . | . . . Unknown Exits Taken 2 | 1 1 . Scrap Searched . | . . . Spaces Dug . | . . . Terrain Destroyed 13 | . . 13 Melee . | . . . Projectile . | . . . AOE 13 | . . 13 Terrain Rammed . | . . . Walls Destroyed . | . . . Machines Disabled . | . . . Actions | -11 -10 -10 --------- Run | Yrd Mat Min Total 1051 | 62 864 125 Wait 82 | . 61 21 Move 836 | 52 691 93 Hop . | . . . Pick Up 27 | 4 21 2 Fast Attach 10 | 6 4 . Attach 6 | . 6 . Detach . | . . . Swap 4 | . 1 3 Drop 1 | . 1 . Fire 79 | . 74 5 Melee . | . . . Ram . | . . . Kick . | . . . Crush 6 | . 5 1 Escape Stasis . | . . . Rewire . | . . . Trap . | . . . Miscellaneous . | . . . Route ------- -11/Scrapyard -10/Materials (discovered 5 exits: [*Mat x3] / [*Min] / [*Sub]) -10/Mines (discovered 2 exits: [*Mat x2]) History --------- Turn | Location | Event 25 | -11/Scrapyard | Discovered new exit (range 15) 94 | -11/Scrapyard | Entered Materials 315 | -10/Materials | Build established: Mutant 330 | -10/Materials | Discovered new exit (range 12) 523 | -10/Materials | Lost 4 parts (1p2n1w) 1173 | -10/Materials | Discovered new exit (range 4) 1401 | -10/Materials | Discovered new exit (range 12) 1490 | -10/Materials | Core integrity fell below 50% 1722 | -10/Materials | Discovered new exit (range 5) 2163 | -10/Materials | Core integrity fell below 20% 2209 | -10/Materials | Discovered new exit (range 11) 2494 | -10/Materials | Entered Mines 2570 | -10/Mines | Discovered new exit (range 13) 2740 | -10/Mines | Discovered new exit (range 9) 2818 | -10/Mines | Assembled infested the area 2835 | -10/Mines | Destroyed by D-53 Grenadier with Mini Grenade Launcher Last Messages --------------- 02686_ R-06 Scavenger collects Flight Unit. 02700_ Destroyed Lgt. Ion Engine. 02700_ R-06 Scavenger destroyed. 02709_ Acquired Flight Unit. 02715_ Acquired 40 matter. 02719_ The unstable cave ceiling collapses. 02737_ R-06 Scavenger collects Tractor Beam. 02739_ R-06 Scavenger collects Com. Wheel. 02740_ EXIT=FOUND 02766_ U-05 Engineer lays Concrete. 02818_ ALERT: Infestation in the mines, dispatching Demolisher response squad. 02830_ C-45 Heavy ARC bursts open, deploying its payload. 02830_ D-53 Grenadier unfolds itself. 02830_ R-06 Scavenger destroyed. 02831_ T-07 Excavator is excavating. 02831_ Lgt. Treads destroyed. 02833_ Ion Engine destroyed. 02833_ T-07 Excavator destroyed. Map ----- +----------------------------------------------------+ | ?????????????????????????????????????? | | ?????????????????????????????????????? | | ?????????????????????????????????????? | | ?????????????????????????????????????? | | ?????????????????????????????????????? | | ?????????????????????????????????????? | | ?????????????????????????????????????? | | ?????????????????????????????????????? | | ?????????????????????????????????????? | | ?????????????????????????????????????? | | ?????????????????????????????????????? | | ?????????????????????????????????????? | | ?????????????????????????????????????? | | ?????????????????????????????????????? | | ?????????????????????????????????????? | | ?????????????????????????????????????? | | ?????????????????????????????????????? | | ?????????????????????????????????????? | | ?????????????????????????????????????? | | ?????????????????###?????????????????? | | ????????????????# ##????????????????? | | ???????????##### ####?????????????? | | ????????#### # $ ### #?????????? | | ????????# #?????????? | | ????????# ! #????????????? | | ????????##! @ #?????????????? | | ????????# ## #??????????????? | | ????????# #??????????????????? | | ????????# ## #???????????????? | | ????????## %= #???????????????? | | ?????????## %d !#####???????????????? | | ??????????###d ###???????????????????? | | ????????????# u#?????????????????????? | | ????????????# #?????????????????????? | | ?????######## #?????????????????????? | | ????## #?????????????????????? | | ????# """ ##????????????????????? | | ????# """ u##???????????????????? | | ????# """ ##??????????????????? | | ???# ##########?????????? | | ???# ## #?????????? | | ???# #?## #?????????? | | ???## #???# < ### ##????????? | | ????####????## ### #????????? | | ?????????????# ### #????????? | | ?????????????# #### #????????? | | ?????????????# ##??# #####????? | | ?????????????## ##???###% # #????? | | ??????????????####????# != #????? | | ??????????????????????# % ##????? | +----------------------------------------------------+ Best States ------------- Heat Dissipation 25 Energy Generation 10 Energy Capacity 250 Matter Stores 300 Matter Capacity 300 Sight Range 16 Terrain Scan Density 10 Evasion (%) 40 Recoil Reduction 2 Item Schematics ----------------- None Robot Schematics ------------------ None Fabricated ------------ Nothing Repaired ---------- Nothing Studied --------- None Alien Tech Used ----------------- None Achievements -------------- Use The Force Challenges ------------ None Game ------ Seed CompactAlertParser Manual? 0 Play Time 00:16:38 Cumulative 23.2 hours Start 2026.08.15 @ 21:16:06 End 2026.08.15 @ 21:31:24 Sessions 1 Manual Loads 0 Difficulty Rogue Special Mode None Game No. 19 Rogue 19 Adventurer 0 Explorer 0 Win Type - Total 0 Types 0/0/0/0/0/0/0/0/0/0 Lore% 11 Gallery% 16 Achievement% 17 Wizard Run 0 Options --------- Layout 1 ASCII 0 Keyboard 0 Movement Mouse Keybinds 0 Fullscreen 1 Font 24/Smallcaps Map View 50x35 Zoom Use 0% Tactical HUD 1 Map Filters NONE Filters NONE Steam 1 RUN: 1869aa77-7715-4ecb-895d-f34637688cfa